fUST/lending_fUST_20250725
["ID","MTS","AMOUNT","RATE_DAILY","PERIOD"]
[374648111,1753399838644,-188.99726995,0.00018649,2]
[374648112,1753399838655,-460.0,0.00018649,2]
[374648113,1753399838665,-460.0,0.00018649,2]
[374648114,1753399838675,-460.0,0.00018649,2]
[374648115,1753399838684,-1006.37453044,0.00018649,2]
[374648116,1753399838694,-1416.46406044,0.0001865,2]
[374648117,1753399838704,-608.29,0.0001865,2]
[374648118,1753399838714,-460.0,0.0001865,2]
[374648119,1753399838723,-2165.27,0.0001865,2]
[374648120,1753399838734,-693.71,0.0001865,2]
[374648121,1753399838743,-1024.03,0.0001865,2]
[374648122,1753399838753,-704.29,0.0001865,2]
[374648123,1753399838762,-500.0,0.0001865,2]
[374648124,1753399838772,-500.0,0.0001865,2]
[374648125,1753399838782,-500.0,0.0001865,2]
[374648126,1753399838791,-460.0,0.0001865,2]
[374648127,1753399838800,-2756.07,0.0001865,2]
[374648128,1753399838810,-12972.87001383,0.0001865,2]
[374648129,1753399839002,-37027.12998617,0.0001865,2]
[374648130,1753399839013,-500.0,0.00018651,2]
[374648131,1753399839026,-460.0,0.00018651,2]
[374648132,1753399839035,-460.0,0.00018651,2]
[374648133,1753399839045,-460.0,0.00018651,2]
[374648134,1753399839054,-460.0,0.00018651,2]
[374648135,1753399839065,-460.0,0.00018651,2]
[374648136,1753399839075,-460.0,0.00018651,2]
[374648137,1753399839084,-605.27,0.00018651,2]
[374648138,1753399839098,-460.0,0.00018651,2]
[374648139,1753399839107,-460.0,0.00018651,2]
[374648140,1753399839117,-460.0,0.00018651,2]
[374648141,1753399839127,-460.0,0.00018651,2]
[374648142,1753399839137,-460.0,0.00018651,2]
[374648143,1753399839147,-460.0,0.00018651,2]
[374648144,1753399839156,-460.0,0.00018651,2]
[374648145,1753399839166,-460.0,0.00018651,2]
[374648146,1753399839176,-460.0,0.00018651,2]
[374648147,1753399839185,-462.28802853,0.00018651,2]
[374648148,1753399839195,-703.07,0.00018651,2]
[374648149,1753399839204,-591.92,0.00018651,2]
[374648150,1753399839214,-178.71902499,0.00018651,2]
[374648151,1753399839224,-460.0,0.00018651,2]
[374648152,1753399839232,-462.22823833,0.00018651,2]
[374648153,1753399839242,-475.9132921,0.00018651,2]
[374648154,1753399839251,-460.0,0.00018651,2]
[374648155,1753399839261,-460.0,0.00018651,2]
[374648156,1753399839271,-461.20924833,0.00018651,2]
[374648157,1753399839282,-940.25,0.00018651,2]
[374648158,1753399839291,-572.88,0.00018651,2]
[374648159,1753399839301,-460.0,0.00018651,2]
[374648160,1753399839310,-500.0,0.00018651,2]
[374648161,1753399839319,-460.0,0.00018651,2]
[374648162,1753399839329,-460.0,0.00018651,2]
[374648163,1753399839338,-463.81480983,0.00018651,2]
[374648164,1753399839349,-698.83,0.00018651,2]
[374648165,1753399839359,-460.0,0.00018651,2]
[374648166,1753399839368,-460.0,0.00018651,2]
[374648167,1753399839377,-460.0,0.00018651,2]
[374648168,1753399839387,-774.33,0.00018651,2]
[374648169,1753399839396,-1174.24,0.00018651,2]
[374648170,1753399839405,-460.0,0.00018651,2]
[374648171,1753399839415,-278.69422962,0.00018651,2]
[374648172,1753399839425,-460.0,0.00018651,2]
[374648173,1753399839435,-461.44,0.00018651,2]
[374648174,1753399839444,-460.0,0.00018651,2]
[374648175,1753399839455,-460.0,0.00018651,2]
[374648176,1753399839464,-1071.38,0.00018651,2]
[374648177,1753399839473,-537.39,0.00018651,2]
[374648178,1753399839483,-460.0,0.00018651,2]
[374648179,1753399839492,-460.0,0.00018651,2]
[374648180,1753399839502,-460.0,0.00018651,2]
[374648181,1753399839511,-460.0,0.00018651,2]
[374648182,1753399839521,-949.99,0.00018651,2]
[374648183,1753399839530,-587.19,0.00018651,2]
[374648184,1753399839540,-460.0,0.00018651,2]
[374648185,1753399839550,-460.0,0.00018651,2]
[374648186,1753399839560,-915.41,0.00018651,2]
[374648187,1753399839570,-569.9519893,0.00018651,2]
[374648188,1753399839581,-1401.05,0.00018651,2]
[374648189,1753399839590,-460.0,0.00018651,2]
[374648190,1753399839603,-456.39160033,0.00018651,2]
[374648191,1753399839613,-460.0,0.00018651,2]
[374648192,1753399839623,-460.0,0.00018651,2]
[374648193,1753399839632,-460.0,0.00018651,2]
[374648194,1753399839642,-460.0,0.00018651,2]
[374648195,1753399839652,-460.0,0.00018651,2]
[374648196,1753399839661,-460.0,0.00018651,2]
[374648197,1753399839670,-460.0,0.00018651,2]
[374648198,1753399839679,-460.0,0.00018651,2]
[374648199,1753399839688,-460.0,0.00018651,2]
[374648200,1753399839698,-460.0,0.00018651,2]
[374648201,1753399839707,-668.12,0.00018651,2]
[374648202,1753399839717,-460.0,0.00018651,2]
[374648203,1753399839727,-466.16172254,0.00018651,2]
[374648204,1753399839738,-460.0,0.00018651,2]
[374648205,1753399839748,-615.52,0.00018651,2]
[374648206,1753399839758,-460.0,0.00018651,2]
[374648207,1753399839767,-460.0,0.00018651,2]
[374648208,1753399839777,-460.0,0.00018651,2]
[374648209,1753399839787,-460.0,0.00018651,2]
[374648210,1753399839796,-476.6,0.00018651,2]
[374648211,1753399839806,-460.0,0.00018652,2]
[374648212,1753399839816,-460.0,0.00018652,2]
[374648213,1753399839825,-232.56948655,0.00018652,2]
[374648214,1753399839835,-438.34146061,0.00018652,2]
[374648215,1753399839844,-460.0,0.00018652,2]
[374648216,1753399839855,-460.0,0.00018652,2]
[374648217,1753399839865,-427.95473267,0.00018652,2]
[374648218,1753399839875,-460.0,0.00018652,2]
[374648219,1753399839885,-460.0,0.00018652,2]
[374648220,1753399839895,-177.97290017,0.00018652,2]
[374648221,1753399839904,-460.0,0.00018652,2]
[374648222,1753399839915,-460.0,0.00018652,2]
[374648223,1753399839925,-460.0,0.00018652,2]
[374648224,1753399839935,-460.0,0.00018652,2]
[374648225,1753399839946,-460.0,0.00018652,2]
[374648226,1753399839955,-460.0,0.00018652,2]
[374648227,1753399839965,-460.0,0.00018652,2]
[374648228,1753399839974,-460.0,0.00018652,2]
[374648229,1753399839984,-460.0,0.00018652,2]
[374648230,1753399839993,-460.0,0.00018652,2]
[374648231,1753399840101,-460.0,0.00018652,2]
[374648232,1753399840112,-460.0,0.00018652,2]
[374648233,1753399840121,-460.0,0.00018652,2]
[374648234,1753399840131,-460.0,0.00018652,2]
[374648235,1753399840141,-462.26392948,0.00018652,2]
[374648236,1753399840151,-460.0,0.00018652,2]
[374648237,1753399840161,-460.0,0.00018652,2]
[374648238,1753399840170,-460.0,0.00018652,2]
[374648239,1753399840179,-213.96772786,0.00018652,2]
[374648240,1753399840189,-460.0,0.00018652,2]
[374648241,1753399840198,-460.0,0.00018652,2]
[374648242,1753399840208,-460.0,0.00018652,2]
[374648243,1753399840218,-460.0,0.00018652,2]
[374648244,1753399840228,-460.0,0.00018652,2]
[374648245,1753399840237,-460.0,0.00018652,2]
[374648246,1753399840247,-460.0,0.00018652,2]
[374648248,1753399840257,-460.0,0.00018652,2]
[374648250,1753399840267,-412.71720283,0.00018652,2]
[374648252,1753399840277,-245.50016698,0.00018652,2]
[374648254,1753399840287,-201.20633806,0.00018652,2]
[374648256,1753399840297,-460.0,0.00018652,2]
[374648258,1753399840306,-460.0,0.00018652,2]
[374648260,1753399840316,-556.34823857,0.00018652,2]
[374648262,1753399840326,-460.0,0.00018652,2]
[374648264,1753399840335,-460.0,0.00018652,2]
[374648266,1753399840345,-460.0,0.00018652,2]
[374648267,1753399840355,-581.82,0.00018652,2]
[374648269,1753399840365,-462.87783646,0.00018652,2]
[374648272,1753399840374,-460.0,0.00018652,2]
[374648274,1753399840383,-460.0,0.00018652,2]
[374648276,1753399840393,-460.0,0.00018652,2]
[374648278,1753399840403,-460.0,0.00018652,2]
[374648280,1753399840413,-460.0,0.00018652,2]
[374648282,1753399840422,-460.0,0.00018652,2]
[374648284,1753399840432,-159.46842286,0.00018652,2]
[374648286,1753399840442,-461.04209964,0.00018652,2]
[374648288,1753399840451,-460.0,0.00018652,2]
[374648290,1753399840460,-460.0,0.00018652,2]
[374648292,1753399840469,-460.0,0.00018652,2]
[374648294,1753399840478,-460.0,0.00018652,2]
[374648296,1753399840488,-460.0,0.00018652,2]
[374648298,1753399840497,-460.0,0.00018652,2]
[374648300,1753399840506,-460.0,0.00018652,2]
[374648301,1753399840515,-460.0,0.00018652,2]
[374648304,1753399840525,-460.0,0.00018652,2]
[374648306,1753399840535,-395.47935336,0.00018652,2]
[374648308,1753399840544,-461.50260577,0.00018652,2]
[374648310,1753399840553,-460.0,0.00018652,2]
[374648312,1753399840562,-460.0,0.00018652,2]
[374648314,1753399840572,-251.00143846,0.00018652,2]
[374648316,1753399840581,-460.0,0.00018652,2]
[374648318,1753399840591,-375.90536632,0.00018652,2]
[374648320,1753399840602,-460.0,0.00018652,2]
[374648322,1753399840611,-461.50845097,0.00018652,2]
[374648324,1753399840621,-460.0,0.00018652,2]
[374648326,1753399840630,-460.0,0.00018652,2]
[374648328,1753399840639,-460.0,0.00018652,2]
[374648330,1753399840649,-500.0,0.00018652,2]
[374648332,1753399840658,-500.0,0.00018652,2]
[374648334,1753399840668,-500.0,0.00018652,2]
[374648336,1753399840677,-500.0,0.00018652,2]
[374648338,1753399840687,-500.0,0.00018652,2]
[374648340,1753399840696,-500.0,0.00018652,2]
[374648342,1753399840705,-658.95,0.00018652,2]
[374648344,1753399840716,-979.0,0.00018652,2]
[374648346,1753399840725,-151.0,0.00018652,2]
[374648348,1753399840735,-151.48953185,0.00018652,2]
[374648350,1753399840744,-460.0,0.00018652,2]
[374648352,1753399840754,-1505.55,0.00018652,2]
[374648354,1753399840764,-500.0,0.00018652,2]
[374648356,1753399840773,-460.0,0.00018652,2]
[374648358,1753399840782,-500.0,0.00018652,2]
[374648360,1753399840792,-152.05121303,0.00018652,2]
[374648362,1753399840801,-500.0,0.00018652,2]
[374648364,1753399840810,-151.23048046,0.00018652,2]
[374648366,1753399840821,-460.0,0.00018652,2]
[374648367,1753399840831,-460.0,0.00018652,2]
[374648369,1753399840840,-151.0,0.00018652,2]
[374648371,1753399840849,-460.0,0.00018652,2]
[374648373,1753399840859,-151.52218414,0.00018652,2]
[374648375,1753399840869,-154.39491513,0.00018652,2]
[374648377,1753399840879,-460.0,0.00018652,2]
[374648379,1753399840889,-460.0,0.00018652,2]
[374648381,1753399840899,-373.88294649,0.00018652,2]
[374648383,1753399840909,-460.0,0.00018652,2]
[374648385,1753399840918,-474.79582029,0.00018652,2]
[374648387,1753399840927,-349.36553616,0.00018652,2]
[374648389,1753399840937,-460.0,0.00018652,2]
[374648391,1753399840946,-1395.06,0.00018652,2]
[374648393,1753399840955,-460.0,0.00018652,2]
[374648395,1753399840965,-460.0,0.00018652,2]
[374648397,1753399840975,-460.0,0.00018652,2]
[374648399,1753399840984,-1160.38,0.00018652,2]
[374648401,1753399840994,-460.0,0.00018652,2]
[374648403,1753399841004,-463.41410887,0.00018652,2]
[374648405,1753399841013,-460.0,0.00018652,2]
[374648407,1753399841024,-460.0,0.00018652,2]
[374648409,1753399841035,-234.71671928,0.00018652,2]
[374648411,1753399841045,-460.0,0.00018652,2]
[374648413,1753399841054,-462.52444877,0.00018652,2]
[374648415,1753399841064,-460.0,0.00018652,2]
[374648417,1753399841075,-460.0,0.00018652,2]
[374648419,1753399841084,-460.0,0.00018652,2]
[374648421,1753399841094,-897.47,0.00018652,2]
[374648423,1753399841105,-479.16,0.00018652,2]
[374648425,1753399841114,-460.0,0.00018652,2]
[374648427,1753399841125,-460.0,0.00018652,2]
[374648429,1753399841135,-714.45,0.00018652,2]
[374648431,1753399841144,-151.0,0.00018652,2]
[374648433,1753399841154,-151.0,0.00018652,2]
[374648435,1753399841164,-460.0,0.00018652,2]
[374648437,1753399841175,-151.0,0.00018652,2]
[374648440,1753399841184,-460.0,0.00018652,2]
[374648441,1753399841194,-460.0,0.00018652,2]
[374648444,1753399841204,-500.0,0.00018652,2]
[374648445,1753399841213,-151.0,0.00018652,2]
[374648447,1753399841223,-151.0,0.00018652,2]
[374648450,1753399841232,-151.0,0.00018652,2]
[374648452,1753399841242,-500.0,0.00018652,2]
[374648453,1753399841251,-460.0,0.00018652,2]
[374648456,1753399841260,-380.56369671,0.00018652,2]
[374648457,1753399841270,-500.0,0.00018652,2]
[374648459,1753399841279,-1126.0,0.00018652,2]
[374648462,1753399841289,-151.0,0.00018652,2]
[374648464,1753399841298,-500.0,0.00018652,2]
[374648466,1753399841307,-151.0,0.00018652,2]
[374648468,1753399841316,-460.0,0.00018652,2]
[374648470,1753399841326,-500.0,0.00018652,2]
[374648472,1753399841335,-460.0,0.00018652,2]
[374648474,1753399841346,-151.0,0.00018652,2]
[374648476,1753399841356,-500.0,0.00018652,2]
[374648478,1753399841365,-151.0,0.00018652,2]
[374648479,1753399841374,-1030.31,0.00018652,2]
[374648482,1753399841384,-460.0,0.00018652,2]
[374648484,1753399841393,-151.0,0.00018652,2]
[374648485,1753399841402,-460.0,0.00018652,2]
[374648488,1753399841412,-460.0,0.00018652,2]
[374648490,1753399841421,-460.0,0.00018652,2]
[374648491,1753399841430,-460.0,0.00018652,2]
[374648494,1753399841440,-540.07,0.00018652,2]
[374648496,1753399841451,-460.0,0.00018652,2]
[374648498,1753399841461,-645.03,0.00018652,2]
[374648500,1753399841470,-460.0,0.00018652,2]
[374648502,1753399841480,-460.0,0.00018652,2]
[374648504,1753399841489,-460.0,0.00018652,2]
[374648506,1753399841499,-1612.38301939,0.00018652,2]
[374648508,1753399841508,-502.43899241,0.00018653,2]
[374648510,1753399841517,-253693.84777715,0.00018653,2]
[374648512,1753399841526,-160.0,0.00018745,2]
[374648514,1753399841536,-215.0738,0.00018748,2]
[374648516,1753399841545,-151.0,0.00018748,2]
[374648518,1753399841555,-151.0,0.00018748,2]
[374648519,1753399841564,-151.0,0.00018748,2]
[374648521,1753399841573,-151.0,0.00018748,2]
[374648524,1753399841583,-151.0,0.00018748,2]
[374648526,1753399841593,-3801.642,0.00018748,2]
[374648528,1753399841604,-151.0,0.00018748,2]
[374648539,1753399841701,-151.0,0.00018748,2]
[374648541,1753399841711,-151.0,0.00018748,2]
[374648543,1753399841721,-151.0,0.00018748,2]
[374648545,1753399841731,-182.81339802,0.00018748,2]
[374648547,1753399841741,-25000.0,0.00018748,2]
[374648549,1753399841750,-20491.78673072,0.00018748,2]
[374648551,1753399841759,-460.0,0.0001875,2]
[374648553,1753399841769,-460.0,0.0001875,2]
[374648555,1753399841779,-460.0,0.0001875,2]
[374648557,1753399841789,-460.0,0.0001875,2]
[374648559,1753399841798,-460.0,0.0001875,2]
[374648561,1753399841808,-460.0,0.0001875,2]
[374648563,1753399841818,-460.0,0.0001875,2]
[374648565,1753399841828,-461.03207951,0.0001875,2]
[374648568,1753399841837,-460.0,0.0001875,2]
[374648570,1753399841847,-460.0,0.0001875,2]
[374648571,1753399841857,-460.0,0.0001875,2]
[374648574,1753399841866,-460.0,0.0001875,2]
[374648575,1753399841876,-460.0,0.0001875,2]
[374648577,1753399841885,-460.0,0.0001875,2]
[374648580,1753399841896,-460.0,0.0001875,2]
[374648582,1753399841905,-181.17598442,0.0001875,2]
[374648584,1753399841914,-463.28007525,0.0001875,2]
[374648586,1753399841924,-460.0,0.0001875,2]
[374648588,1753399841934,-460.0,0.0001875,2]
[374648590,1753399841943,-460.0,0.0001875,2]
[374648592,1753399841953,-460.0,0.0001875,2]
[374648594,1753399841963,-505.72697815,0.0001875,2]
[374648596,1753399841972,-460.0,0.0001875,2]
[374648598,1753399841981,-151.0,0.0001875,2]
[374648600,1753399841991,-500.0,0.0001875,2]
[374648602,1753399842000,-151.0,0.0001875,2]
[374648604,1753399842010,-151.0,0.0001875,2]
[374648606,1753399842020,-151.0,0.0001875,2]
[374648608,1753399842033,-151.0,0.0001875,2]
[374648610,1753399842042,-151.0,0.0001875,2]
[374648612,1753399842052,-151.0,0.0001875,2]
[374648614,1753399842061,-249.59601864,0.0001875,2]
[374648616,1753399842073,-201.71522452,0.0001875,2]
[374648618,1753399842083,-151.0,0.0001875,2]
[374648620,1753399842093,-460.0,0.0001875,2]
[374648622,1753399842104,-506.25075022,0.0001875,2]
[374648624,1753399842113,-460.0,0.0001875,2]
[374648626,1753399842123,-598.13,0.0001875,2]
[374648628,1753399842132,-320.6326763,0.0001875,2]
[374648630,1753399842142,-460.0,0.0001875,2]
[374648632,1753399842151,-460.0,0.0001875,2]
[374648634,1753399842160,-837.31,0.0001875,2]
[374648636,1753399842169,-460.0,0.0001875,2]
[374648638,1753399842178,-894.37,0.0001875,2]
[374648640,1753399842188,-460.0,0.0001875,2]
[374648642,1753399842198,-1022.85,0.0001875,2]
[374648644,1753399842208,-460.0,0.0001875,2]
[374648646,1753399842217,-460.0,0.0001875,2]
[374648648,1753399842229,-460.0,0.0001875,2]
[374648650,1753399842239,-460.0,0.0001875,2]
[374648653,1753399842248,-460.0,0.0001875,2]
[374648654,1753399842259,-460.0,0.0001875,2]
[374648657,1753399842268,-686.1,0.0001875,2]
[374648659,1753399842278,-460.0,0.0001875,2]
[374648660,1753399842287,-460.0,0.0001875,2]
[374648662,1753399842298,-460.0,0.0001875,2]
[374648665,1753399842308,-460.0,0.0001875,2]
[374648667,1753399842319,-1269.57,0.0001875,2]
[374648669,1753399842329,-460.0,0.0001875,2]
[374648671,1753399842338,-567.68052798,0.0001875,2]
[374648673,1753399842347,-460.0,0.0001875,2]
[374648675,1753399842357,-460.0,0.0001875,2]
[374648677,1753399842366,-756.81,0.0001875,2]
[374648679,1753399842375,-460.0,0.0001875,2]
[374648680,1753399842384,-460.0,0.0001875,2]
[374648683,1753399842394,-460.0,0.0001875,2]
[374648684,1753399842403,-256.64114248,0.0001875,2]
[374648686,1753399842412,-460.0,0.0001875,2]
[374648688,1753399842421,-1183.51,0.0001875,2]
[374648690,1753399842430,-460.0,0.0001875,2]
[374648693,1753399842440,-460.0,0.0001875,2]
[374648695,1753399842450,-460.0,0.0001875,2]
[374648697,1753399842459,-460.0,0.0001875,2]
[374648699,1753399842468,-460.0,0.0001875,2]
[374648701,1753399842477,-561.14,0.0001875,2]
[374648703,1753399842487,-460.0,0.0001875,2]
[374648705,1753399842497,-460.0,0.0001875,2]
[374648707,1753399842505,-460.0,0.0001875,2]
[374648709,1753399842515,-460.0,0.0001875,2]
[374648711,1753399842523,-6067.09,0.0001875,2]
[374648713,1753399842532,-460.0,0.0001875,2]
[374648715,1753399842541,-460.0,0.0001875,2]
[374648717,1753399842550,-460.2633411,0.0001875,2]
[374648719,1753399842559,-580.34304337,0.0001875,2]
[374648721,1753399842568,-2320.41,0.0001875,2]
[374648723,1753399842577,-460.0,0.0001875,2]
[374648725,1753399842586,-460.0,0.0001875,2]
[374648727,1753399842595,-460.0,0.0001875,2]
[374648729,1753399842604,-481.98,0.0001875,2]
[374648731,1753399842614,-582.71,0.0001875,2]
[374648733,1753399842623,-460.0,0.0001875,2]
[374648735,1753399842632,-218.68448043,0.0001875,2]
[374648737,1753399842642,-502.17,0.0001875,2]
[374648739,1753399842652,-2415.76,0.0001875,2]
[374648741,1753399842661,-464.5,0.0001875,2]
[374648743,1753399842671,-460.0,0.0001875,2]
[374648745,1753399842680,-917.1,0.0001875,2]
[374648747,1753399842690,-460.0,0.0001875,2]
[374648749,1753399842699,-460.0,0.0001875,2]
[374648751,1753399842709,-1191.29,0.0001875,2]
[374648753,1753399842718,-460.0,0.0001875,2]
[374648755,1753399842727,-1026.55,0.0001875,2]
[374648757,1753399842736,-460.0,0.0001875,2]
[374648759,1753399842745,-460.0,0.0001875,2]
[374648761,1753399842753,-624.54,0.0001875,2]
[374648762,1753399842763,-460.0,0.0001875,2]
[374648764,1753399842772,-3364.24,0.0001875,2]
[374648766,1753399842781,-3300.61,0.0001875,2]
[374648768,1753399842790,-460.0,0.0001875,2]
[374648769,1753399842800,-919.74,0.0001875,2]
[374648771,1753399842809,-460.0,0.0001875,2]
[374648772,1753399842819,-460.0,0.0001875,2]
[374648773,1753399842828,-2289.55,0.0001875,2]
[374648774,1753399842837,-2820.52,0.0001875,2]
[374648775,1753399842846,-460.0,0.0001875,2]
[374648776,1753399842857,-590.55248026,0.0001875,2]
[374648777,1753399842866,-460.0,0.00018751,2]
[374648778,1753399842876,-460.0,0.00018751,2]
[374648780,1753399842885,-460.0,0.00018751,2]
[374648782,1753399842897,-413.5416707,0.00018751,2]
[374648783,1753399842906,-461.56600901,0.00018751,2]
[374648785,1753399842916,-460.0,0.00018751,2]
[374648787,1753399842929,-460.0,0.00018751,2]
[374648789,1753399842938,-683.11,0.00018751,2]
[374648791,1753399842948,-460.0,0.00018751,2]
[374648793,1753399842957,-460.0,0.00018751,2]
[374648795,1753399842967,-460.0,0.00018751,2]
[374648797,1753399842977,-1079.03,0.00018751,2]
[374648799,1753399842987,-3533.48,0.00018751,2]
[374648801,1753399842996,-460.81720325,0.00018751,2]
[374648804,1753399843006,-460.0,0.00018751,2]
[374648806,1753399843015,-3070.14,0.00018751,2]
[374648808,1753399843029,-460.0,0.00018751,2]
[374648810,1753399843039,-460.0,0.00018751,2]
[374648812,1753399843048,-460.0,0.00018751,2]
[374648814,1753399843057,-460.0,0.00018751,2]
[374648816,1753399843067,-460.0,0.00018752,2]
[374648818,1753399843077,-460.0,0.00018752,2]
[374648829,1753399843173,-199.886,0.00018752,2]
[374648831,1753399843183,-460.0,0.00018752,2]
[374648833,1753399843192,-304.38419017,0.00018752,2]
[374648834,1753399843202,-369.78329955,0.00018752,2]
[374648837,1753399843211,-460.0,0.00018752,2]
[374648839,1753399843221,-217.16658376,0.00018752,2]
[374648841,1753399843231,-460.0,0.00018752,2]
[374648843,1753399843240,-462.32236347,0.00018752,2]
[374648844,1753399843250,-489.77781074,0.00018752,2]
[374648846,1753399843260,-460.54866141,0.00018752,2]
[374648848,1753399843269,-407.27528901,0.00018752,2]
[374648850,1753399843279,-460.0,0.00018752,2]
[374648853,1753399843289,-460.0,0.00018752,2]
[374648854,1753399843299,-460.0,0.00018752,2]
[374648856,1753399843309,-468.6606273,0.00018752,2]
[374648859,1753399843319,-462.10525546,0.00018752,2]
[374648861,1753399843330,-460.0,0.00018752,2]
[374648863,1753399843339,-460.0,0.00018752,2]
[374648864,1753399843350,-460.0,0.00018752,2]
[374648866,1753399843359,-461.32568626,0.00018752,2]
[374648868,1753399843369,-460.0,0.00018752,2]
[374648870,1753399843379,-460.0,0.00018752,2]
[374648872,1753399843388,-460.0,0.00018752,2]
[374648874,1753399843398,-460.2761484,0.00018752,2]
[374648876,1753399843407,-460.0,0.00018752,2]
[374648878,1753399843417,-460.0,0.00018752,2]
[374648880,1753399843427,-460.0,0.00018752,2]
[374648883,1753399843436,-549.54772235,0.00018752,2]
[374648884,1753399843445,-482.82,0.00018752,2]
[374648886,1753399843455,-460.0,0.00018752,2]
[374648888,1753399843464,-460.0,0.00018752,2]
[374648890,1753399843473,-460.0,0.00018752,2]
[374648892,1753399843482,-460.0,0.00018752,2]
[374648894,1753399843491,-461.61239973,0.00018752,2]
[374648896,1753399843501,-460.0,0.00018752,2]
[374648898,1753399843510,-460.0,0.00018752,2]
[374648900,1753399843520,-460.0,0.00018752,2]
[374648902,1753399843529,-460.0,0.00018752,2]
[374648904,1753399843539,-460.0,0.00018752,2]
[374648906,1753399843548,-460.0,0.00018752,2]
[374648908,1753399843557,-1568.11,0.00018752,2]
[374648910,1753399843566,-460.0,0.00018752,2]
[374648912,1753399843576,-460.0,0.00018752,2]
[374648914,1753399843585,-460.0,0.00018752,2]
[374648915,1753399843595,-460.0,0.00018752,2]
[374648916,1753399843604,-460.0,0.00018752,2]
[374648917,1753399843614,-460.0,0.00018752,2]
[374648919,1753399843623,-460.0,0.00018752,2]
[374648921,1753399843634,-460.0,0.00018752,2]
[374648923,1753399843643,-773.44,0.00018752,2]
[374648925,1753399843652,-461.94666984,0.00018752,2]
[374648926,1753399843662,-460.0,0.00018752,2]
[374648927,1753399843672,-460.0,0.00018752,2]
[374648928,1753399843682,-460.0,0.00018752,2]
[374648929,1753399843692,-460.0,0.00018752,2]
[374648930,1753399843702,-460.0,0.00018752,2]
[374648931,1753399843711,-622.12,0.00018752,2]
[374648932,1753399843722,-460.0,0.00018752,2]
[374648933,1753399843732,-460.0,0.00018752,2]
[374648934,1753399843742,-460.0,0.00018752,2]
[374648935,1753399843752,-568.85,0.00018752,2]
[374648936,1753399843761,-462.67190162,0.00018752,2]
[374648937,1753399843771,-460.0,0.00018752,2]
[374648938,1753399843782,-500.0,0.00018752,2]
[374648939,1753399843792,-500.0,0.00018752,2]
[374648940,1753399843801,-460.0,0.00018752,2]
[374648941,1753399843811,-553.20793542,0.00018752,2]
[374648942,1753399843821,-460.0,0.00018752,2]
[374648943,1753399843831,-460.0,0.00018752,2]
[374648944,1753399843841,-446.56643104,0.00018752,2]
[374648945,1753399843851,-460.0,0.00018752,2]
[374648946,1753399843861,-460.0,0.00018752,2]
[374648947,1753399843871,-460.0,0.00018752,2]
[374648948,1753399843880,-602.31,0.00018752,2]
[374648949,1753399843891,-460.0,0.00018752,2]
[374648950,1753399843900,-460.0,0.00018752,2]
[374648951,1753399843910,-460.0,0.00018752,2]
[374648952,1753399843919,-460.0,0.00018752,2]
[374648953,1753399843929,-625.1,0.00018752,2]